bitfinex/quotes_SOLUSD_20250922
["timestamp","ask_amount","ask_price","bid_price","bid_amount"]
[1758545850754,0.66,223.34,223.33,80.59999999]
[1758545851361,0.66,223.34,223.32,35.38]
[1758545853176,0.66,223.34,223.31,4.47806334]
[1758545853356,0.66,223.34,223.32,35.38]
[1758545854068,0.66,223.34,223.3,80.59999999]
[1758545854373,0.66,223.34,223.31,35.38]
[1758545854870,1.34563837,223.35,223.31,35.38]
[1758545855076,1.34563837,223.34,223.31,35.38]
[1758545856467,1.34563837,223.34,223.28,98.67411339]
[1758545856775,1.34563837,223.31,223.29,35.38]
[1758545857076,1.34563837,223.31,223.29,115.97999999]
[1758545857982,30.47728579,223.35,223.29,115.97999999]
[1758545858181,1.34563837,223.32,223.29,115.97999999]
[1758545858382,1.34563837,223.33,223.29,115.97999999]
[1758545858685,1.34563837,223.33,223.29,120.45846546]
[1758545860181,1.34563837,223.32,223.29,115.97999999]
[1758545860404,1.34563837,223.31,223.29,115.97999999]
[1758545860863,1.34563837,223.32,223.29,115.97999999]
[1758545861064,1.34563837,223.32,223.29,80.59999999]
[1758545861259,1.34563837,223.32,223.29,115.97999999]
[1758545861558,1.34563837,223.33,223.29,85.07847406]
[1758545861770,1.34563837,223.33,223.29,120.45847406]
[1758545862081,27.34563837,223.34,223.29,120.45847406]
[1758545863682,0.1,223.37,223.3,13.59559401]
[1758545863883,1.34563837,223.36,223.31,35.38]
[1758545864965,1.44563837,223.37,223.32,13.59559401]
[1758545865289,0.1,223.37,223.33,35.38]
[1758545865783,0.1,223.37,223.34,4.47747828]
[1758545865989,0.1,223.37,223.35,35.36]
[1758545866582,0.1,223.37,223.36,35.36]
[1758545866994,0.1,223.37,223.35,35.36]
[1758545867287,1.34563837,223.36,223.35,35.36]
[1758545867487,1.34563837,223.36,223.34,35.36]
[1758545867679,1.44563837,223.37,223.34,35.36]
[1758545868483,1.34563837,223.36,223.33,35.36]
[1758545868785,1.34563837,223.35,223.33,35.36]
[1758545868989,1.34563837,223.34,223.33,35.36]
[1758545869192,1.34563837,223.34,223.32,120.43787661]
[1758545869390,1.34563837,223.34,223.32,85.07787661]
[1758545869587,1.34563837,223.34,223.32,120.43787661]
[1758545870082,1.34563837,223.34,223.32,80.59999999]
[1758545870272,1.34563837,223.33,223.32,35.36]
[1758545870473,1.34563837,223.33,223.3,35.36]
[1758545870865,27.34563837,223.34,223.3,35.36]
[1758545873593,1.34563837,223.33,223.3,35.36]
[1758545873890,1.34563837,223.32,223.3,35.36]
[1758545874064,1.34563837,223.33,223.3,35.36]
[1758545875093,1.34563837,223.32,223.3,35.36]
[1758545875288,1.34563837,223.32,223.3,39.83821508]
[1758545875494,1.34563837,223.33,223.3,39.83821508]
[1758545875690,1.34563837,223.34,223.3,51.03391593]
[1758545876277,1.34563837,223.34,223.3,39.83821508]
[1758545876480,1.34563837,223.33,223.3,39.83821508]
[1758545876681,1.34563837,223.33,223.3,4.47821508]
[1758545876994,7.59343578,223.37,223.3,4.47821508]
[1758545877188,1.34563837,223.32,223.28,18.07427548]
[1758545877388,1.34563837,223.31,223.29,35.36]
[1758545877590,4.47735772,223.35,223.28,35.36]
[1758545877591,1.34563837,223.3,223.28,35.36]
[1758545877775,3.01654882,223.34,223.28,35.36]
[1758545878096,1.34563837,223.3,223.28,35.36]
[1758545878993,3.01654882,223.34,223.28,35.36]
[1758545879173,1.34563837,223.3,223.28,35.36]
[1758545879606,1.34563837,223.3,223.29,4.47848089]
[1758545880416,1.34563837,223.3,223.28,39.83865293]
[1758545883179,1.34563837,223.29,223.26,80.59999999]
[1758545883381,7.49430316,223.33,223.27,35.34]
[1758545883581,1.34563837,223.28,223.27,35.34]
[1758545884480,1.34563837,223.3,223.26,80.59999999]
[1758545884680,1.34563837,223.29,223.27,35.34]
[1758545885104,1.34563837,223.28,223.27,39.81875542]
[1758545885295,1.34563837,223.28,223.27,120.41875541]
[1758545886396,3.01654882,223.33,223.27,51.01596059]
[1758545886612,3.01654882,223.33,223.27,131.61596058]
[1758545886811,1.34563837,223.32,223.27,131.61596058]
[1758545886989,1.34563837,223.31,223.27,131.61596058]
[1758545887682,1.34563837,223.31,223.27,96.27596058]
[1758545887882,1.34563837,223.31,223.28,35.34]
[1758545888810,1.34563837,223.32,223.29,4.47848089]
[1758545889111,1.34563837,223.32,223.3,35.34]
[1758545889496,26.1,223.37,223.3,35.34]
[1758545889817,29.01938579,223.36,223.3,35.34]
[1758545890001,1.34563837,223.34,223.3,35.34]
[1758545891006,1.34563837,223.34,223.31,4.47807979]
[1758545891505,1.34563837,223.33,223.31,4.47807979]
[1758545891884,3.01938579,223.36,223.31,4.47807979]
[1758545892084,1.34563837,223.33,223.31,4.47807979]
[1758545893502,1.34563837,223.33,223.3,4.47828034]
[1758545893809,1.34563837,223.33,223.31,35.34]
[1758545894504,1.34563837,223.33,223.31,35.32]
[1758545894887,1.34563837,223.32,223.31,35.32]
[1758545895091,1.34563837,223.33,223.31,35.32]
[1758545895507,1.34563837,223.33,223.3,4.47828034]
[1758545895716,1.34563837,223.33,223.31,35.32]
[1758545896108,1.34563837,223.32,223.31,35.32]
[1758545896995,1.34563837,223.32,223.31,115.91999999]
[1758545897203,1.34563837,223.32,223.31,80.59999999]
[1758545897421,1.34563837,223.32,223.31,120.39807978]
[1758545898919,1.34563837,223.32,223.31,85.07807978]
[1758545899104,1.34563837,223.32,223.31,80.59999999]
[1758545902916,1.34563837,223.32,223.28,39.79848194]
[1758545903110,1.34563837,223.29,223.28,39.79848194]
[1758545908224,1.34563837,223.3,223.28,39.79848194]
[1758545908723,1.34563837,223.3,223.28,120.39848193]
[1758545910332,1.34563837,223.29,223.28,120.39848193]
[1758545911633,1.34563837,223.29,223.28,120.37848193]
[1758545912624,1.34563837,223.29,223.28,85.07848193]
[1758545912837,1.34563837,223.29,223.28,120.37848193]
[1758545913319,3.02085912,223.32,223.28,120.37848193]
[1758545913523,1.34563837,223.29,223.28,120.37848193]
[1758545914016,1.34563837,223.29,223.28,115.89999999]
[1758545914518,2.10393152,223.29,223.28,115.89999999]
[1758545914717,2.78393152,223.29,223.27,4.47876387]
[1758545915031,2.10393152,223.28,223.27,4.47876387]
[1758545915237,2.10393152,223.28,223.27,120.37876387]
[1758545916938,2.10393152,223.3,223.27,131.57596904]
[1758545917316,2.78393152,223.3,223.27,131.57596904]
[1758545917732,2.10393152,223.29,223.27,131.57596904]
[1758545919751,2.10393152,223.29,223.27,120.37876387]
[1758545919940,2.78393152,223.29,223.27,120.37876387]
[1758545920469,3.02085912,223.32,223.27,80.6]
[1758545920470,2.78393152,223.28,223.27,80.6]
[1758545920742,2.78393152,223.28,223.27,35.28]
[1758545921142,2.78393152,223.28,223.23,0.72]
[1758545921143,26.0,223.27,223.23,35.28]
[1758545921447,0.68,223.26,223.2,0.739856]
[1758545921654,0.68,223.26,223.21,35.28]
[1758545921953,4.47877943,223.28,223.2,0.739856]
[1758545921954,15.67548312,223.28,223.2,40.50012918]
[1758545922236,3.02309261,223.27,223.2,41.22012918]
[1758545922743,11.06270568,223.28,223.2,41.22012918]
[1758545923518,11.06270568,223.28,223.21,0.72]
[1758545923846,11.06270568,223.28,223.21,5.20006568]
[1758545924029,11.06270568,223.28,223.21,0.72]
[1758545924632,11.06270568,223.28,223.21,5.20007358]
[1758545925166,3.02309261,223.28,223.22,0.72]
[1758545925327,3.01893199,223.29,223.22,36.0]
[1758545925531,3.01893199,223.29,223.23,0.72]
[1758545925727,26.0,223.27,223.24,4.47948396]
[1758545925925,26.0,223.27,223.25,0.72]
[1758545926947,26.0,223.27,223.23,5.19967517]
[1758545927144,26.0,223.27,223.23,4.47967517]
[1758545927325,26.0,223.27,223.24,0.72]
[1758545930526,26.0,223.28,223.24,5.19940625]
[1758545930723,26.0,223.27,223.24,5.19940625]
[1758545931454,26.0,223.28,223.24,5.19940625]
[1758545931764,26.0,223.28,223.25,0.72]
[1758545932252,26.0,223.28,223.22,4.47988531]
[1758545932428,26.0,223.28,223.23,0.72]
[1758545932728,26.0,223.28,223.24,0.72]
[1758545933255,26.0,223.28,223.24,5.19932756]
[1758545934551,26.0,223.28,223.24,4.47932756]
[1758545934725,8.04530868,223.36,223.25,0.72]
[1758545934925,7.49298697,223.36,223.25,0.72]
[1758545935227,35.26,223.35,223.25,0.72]
[1758545935428,26.0,223.32,223.25,0.72]
[1758545935747,26.0,223.32,223.26,15.67678938]
[1758545935938,26.0,223.32,223.27,0.72]
[1758545936139,26.0,223.32,223.28,0.72]
[1758545936344,26.0,223.32,223.26,15.67678938]
[1758545936533,26.0,223.32,223.26,4.47908268]
[1758545936735,3.01617258,223.31,223.26,4.47908268]
[1758545937256,3.01617258,223.31,223.26,5.18908268]
[1758545937434,3.01617258,223.31,223.27,0.71]
[1758545937836,26.0,223.31,223.27,5.18871548]
[1758545938036,26.0,223.31,223.27,4.47871548]
[1758545938251,26.0,223.31,223.28,0.71]
[1758545938450,26.0,223.31,223.27,4.47871548]
[1758545938636,26.0,223.31,223.27,5.18871548]
[1758545938955,26.0,223.33,223.27,5.18871548]
[1758545939143,26.0,223.31,223.27,5.18871548]
[1758545939952,26.0,223.31,223.28,0.71]
[1758545940158,26.0,223.31,223.28,5.18850513]
[1758545940654,61.26,223.34,223.29,0.71]
[1758545940841,3.0167869,223.33,223.3,0.71]
[1758545941562,29.0167869,223.33,223.3,0.71]
[1758545941861,26.0,223.33,223.3,0.71]
[1758545942461,26.0,223.33,223.31,4.47807979]
[1758545944263,3.01762984,223.32,223.31,4.47807979]
[1758545944561,3.01762984,223.32,223.26,5.18908268]
[1758545944763,3.01762984,223.32,223.26,85.78908268]
[1758545945850,3.01762984,223.32,223.27,0.71]
[1758545946051,3.01762984,223.32,223.28,0.71]
[1758545946254,3.01762984,223.32,223.26,96.27678938]
[1758545946564,3.01762984,223.32,223.29,4.47848089]
[1758545946946,3.01762984,223.32,223.29,5.18848089]
[1758545947866,3.01762984,223.32,223.29,0.71]
[1758545948066,3.01762984,223.32,223.28,4.47867998]
[1758545948263,3.01762984,223.32,223.26,85.78891755]
[1758545948456,3.01762984,223.32,223.23,11.19892409]
[1758545948457,26.0,223.29,223.23,0.71]
[1758545948760,3.01836432,223.28,223.24,4.47948396]
[1758545948940,26.0,223.29,223.25,0.71]
[1758545949763,26.0,223.33,223.26,0.71]
[1758545950063,26.0,223.29,223.26,0.71]
[1758545950263,26.0,223.29,223.27,0.71]
[1758545950641,26.0,223.29,223.28,0.71]
[1758545950843,29.01835749,223.29,223.22,13.59559401]
[1758545951157,26.0,223.29,223.24,13.59559401]
[1758545951362,26.0,223.3,223.25,0.71]
[1758545952272,26.0,223.3,223.26,4.47908268]
[1758545952459,26.0,223.3,223.27,0.71]
[1758545952666,26.0,223.3,223.26,5.18908268]
[1758545953167,26.0,223.3,223.27,0.71]
[1758545955071,26.0,223.3,223.27,5.18879596]
[1758545956367,61.22,223.33,223.27,5.18879596]
[1758545956568,3.0188301,223.32,223.27,5.18879596]
[1758545957981,7.49674821,223.32,223.25,0.72]
[1758545958167,26.0,223.29,223.23,0.72]
[1758545958551,3.01937738,223.28,223.23,0.72]
[1758545959178,3.01937738,223.28,223.24,5.19928342]
[1758545959555,3.01937738,223.28,223.25,0.72]
[1758545960052,61.22,223.29,223.25,0.72]
[1758545961454,61.22,223.29,223.25,5.1991299]
[1758545961657,35.22,223.29,223.25,5.1991299]
[1758545962054,3.01956037,223.28,223.25,5.1991299]
[1758545962253,38.23956037,223.29,223.25,5.1991299]
[1758545962585,3.01956037,223.28,223.25,5.1991299]
[1758545962795,3.01956037,223.28,223.25,0.72]
[1758545964879,3.01956037,223.29,223.26,4.47908268]
[1758545965504,35.2,223.29,223.26,5.19908268]
[1758545965664,3.01956037,223.28,223.26,5.19908268]
[1758545966364,3.01956037,223.28,223.26,4.47908268]
[1758545966672,35.2,223.29,223.26,5.19908268]
[1758545966872,3.01956037,223.28,223.27,0.72]
[1758545967055,35.2,223.3,223.27,0.72]
[1758545967254,29.01956037,223.29,223.27,0.72]
[1758545967472,26.0,223.29,223.27,0.72]
[1758545968160,26.0,223.33,223.28,4.47868147]
[1758545968362,26.0,223.3,223.29,0.67]
[1758545968666,29.02048624,223.3,223.29,0.67]
[1758545969179,29.02048624,223.3,223.26,11.1977067]
[1758545969386,35.2,223.32,223.26,11.1977067]
[1758545969387,29.02048624,223.29,223.27,0.67]
[1758545969679,26.0,223.29,223.28,0.67]
[1758545969863,29.02074737,223.29,223.28,0.67]
[1758545970265,26.0,223.29,223.28,0.67]
[1758545970462,26.0,223.33,223.28,5.14868147]
[1758545970670,3.02106432,223.32,223.28,4.47868147]
[1758545970878,29.02106432,223.31,223.29,0.67]
[1758545971084,3.02106432,223.3,223.28,15.67538516]
[1758545971582,3.02106432,223.3,223.29,0.67]
[1758545971763,26.0,223.31,223.29,0.67]
[1758545971959,3.02130913,223.3,223.29,0.67]
[1758545972478,0.1,223.37,223.29,16.34468313]
[1758545972681,3.02125321,223.36,223.3,14.26559401]
[1758545972995,3.02125321,223.35,223.31,0.67]
[1758545973286,3.02125321,223.35,223.31,3.69125321]
[1758545973486,26.0,223.36,223.32,0.67]
[1758545973695,3.02125321,223.35,223.33,4.47767877]
[1758545973864,3.02125321,223.35,223.34,0.67]
[1758545974282,26.0,223.36,223.34,0.67]
[1758545974483,26.0,223.36,223.35,0.67]
[1758545974683,29.01952479,223.36,223.35,5.14727781]
[1758545975879,29.01952479,223.36,223.32,11.19451511]
[1758545975880,29.01952479,223.36,223.33,0.67]
[1758545976084,26.0,223.36,223.33,0.67]
[1758545976387,0.1,223.37,223.34,0.67]
[1758545976570,26.0,223.36,223.35,0.67]
[1758545976765,29.01843542,223.36,223.35,0.67]
[1758545976983,29.01843542,223.36,223.35,5.14727781]
[1758545977485,3.01843542,223.36,223.35,5.14727781]
[1758545977683,0.1,223.37,223.35,5.14727781]
[1758545977856,0.1,223.37,223.36,14.26559401]
[1758545978259,0.1,223.37,223.36,27.73209609]
[1758545979388,0.1,223.37,223.36,32.20917345]
[1758545985891,0.1,223.37,223.36,112.80917345]
[1758545990191,0.1,223.37,223.36,85.07707736]
[1758545990696,0.1,223.37,223.36,85.74707736]
[1758545990883,0.1,223.37,223.36,81.27]
[1758545991597,0.1,223.37,223.36,85.74707736]
[1758545991806,0.1,223.37,223.36,5.14707736]
[1758545998599,0.1,223.37,223.36,40.26707736]
[1758546000423,0.1,223.37,223.36,42.06277219]
[1758546001000,0.1,223.37,223.36,6.94277219]
[1758546001317,30.57693016,223.37,223.31,4.47790914]
[1758546001619,26.0,223.36,223.31,6.27392647]
[1758546001810,30.47712123,223.36,223.28,0.68]
[1758546002119,30.47712123,223.36,223.2,81.339856]
[1758546002120,3.00860563,223.35,223.23,0.68]
[1758546002418,3.00860563,223.35,223.23,35.8]
[1758546002597,3.00860563,223.35,223.26,13.47194467]
[1758546002799,3.00860563,223.35,223.24,0.68]
[1758546002998,26.0,223.31,223.24,0.68]
[1758546003201,61.12,223.31,223.23,4.4796129]
[1758546003515,61.12,223.31,223.2,0.739856]
[1758546003516,3.00901876,223.3,223.2,0.739856]
[1758546003909,26.0,223.26,223.2,0.739856]
[1758546004113,26.0,223.22,223.2,0.739856]
[1758546004911,29.6693855,223.22,223.2,0.739856]
[1758546005110,4.48008601,223.21,223.2,0.739856]
[1758546005312,21.08433703,223.21,223.2,0.739856]
[1758546005630,26.0,223.18,223.06,0.68]
[1758546005824,26.0,223.14,223.06,0.68]
[1758546006710,26.0,223.18,223.06,0.68]
[1758546006915,26.0,223.14,223.06,0.68]
[1758546007230,3.6693855,223.22,223.07,13.59559401]
[1758546007397,26.0,223.19,223.09,13.59559401]
[1758546007709,26.0,223.19,223.1,0.68]
[1758546008232,26.0,223.18,223.08,0.68]
[1758546009022,61.12,223.18,223.08,0.68]
[1758546009233,61.12,223.18,223.09,4.48249585]
[1758546009523,61.12,223.18,223.1,0.68]
[1758546010120,61.12,223.19,223.1,0.68]
[1758546010426,26.0,223.19,223.1,0.68]
[1758546010726,26.0,223.17,223.1,0.68]
[1758546010896,25.94089098,223.17,223.11,13.59559401]
[1758546011102,25.94089098,223.17,223.12,0.68]
[1758546011500,25.94089098,223.17,223.13,4.48169228]
[1758546011724,25.94089098,223.17,223.14,0.68]
[1758546012031,25.94089098,223.17,223.15,0.68]
[1758546012212,4.47971818,223.23,223.15,0.68]
[1758546012213,35.12,223.23,223.15,0.68]
[1758546012616,15.67468313,223.29,223.15,0.68]
[1758546012811,35.12,223.28,223.15,0.68]
[1758546013408,39.59878658,223.28,223.16,15.6838143]
[1758546013607,50.79549027,223.28,223.16,15.6838143]
[1758546014113,50.79549027,223.28,223.16,16.3638143]
[1758546014699,39.59878658,223.28,223.17,0.71]
[1758546014912,4.47843884,223.3,223.18,13.59559401]
[1758546015127,35.12,223.29,223.19,0.71]
[1758546016606,0.1,223.37,223.2,13.59559401]
[1758546016806,48.71559401,223.36,223.21,16.39030105]
[1758546017113,48.71559401,223.36,223.22,0.71]
[1758546017914,1.34656239,223.27,223.23,15.6788962]
[1758546018116,1.34656239,223.27,223.24,0.71]
[1758546018415,1.34656239,223.29,223.25,0.71]
[1758546018618,39.59724465,223.36,223.26,0.71]
[1758546018935,1.34656239,223.29,223.26,0.71]
[1758546019604,1.34656239,223.3,223.27,4.47888207]
[1758546019817,39.59724465,223.36,223.21,4.48008601]
[1758546019818,1.34656239,223.28,223.21,4.48008601]
[1758546020111,5.38624956,223.32,223.21,4.48008601]
[1758546020112,1.34656239,223.25,223.21,4.48008601]
[1758546020428,1.34656239,223.27,223.22,0.71]
[1758546020632,0.1,223.37,223.23,13.59559401]
[1758546020817,1.34656239,223.27,223.23,13.59559401]
[1758546021020,1.34656239,223.27,223.22,13.59559401]
[1758546021204,1.34656239,223.27,223.24,0.71]
[1758546021402,8.16910976,223.37,223.25,0.71]
[1758546021630,1.34656239,223.3,223.25,0.71]
[1758546021837,1.34656239,223.28,223.26,4.47908268]
[1758546022035,4.4775551,223.34,223.26,4.47908268]
[1758546022036,1.34656239,223.27,223.26,4.47908268]
[1758546022243,1.34656239,223.28,223.26,4.47908268]
[1758546022419,1.34656239,223.29,223.26,4.47908268]
[1758546022928,4.4775551,223.34,223.24,11.90861499]
[1758546022929,1.34656239,223.27,223.24,4.47928951]
[1758546023128,1.34656239,223.27,223.24,5.18928951]
[1758546023436,1.34656239,223.28,223.24,5.18928951]
[1758546024125,4.4775252,223.34,223.24,16.38799941]
[1758546024327,1.34656239,223.29,223.25,0.71]
[1758546024921,1.34645863,223.29,223.25,0.71]
[1758546025252,4.47707736,223.36,223.26,4.47908268]
[1758546025434,1.34645863,223.29,223.26,4.47908268]
[1758546025637,1.34645863,223.28,223.26,4.47908268]
[1758546027051,1.34645863,223.28,223.26,5.18908268]
[1758546027251,4.47707736,223.36,223.27,0.67]
[1758546027438,1.34645863,223.29,223.27,0.67]
[1758546027753,1.34645863,223.3,223.28,0.67]
[1758546028065,1.34645863,223.33,223.26,1.34645863]
[1758546028347,4.57687751,223.37,223.24,98.67267137]
[1758546028348,1.34645863,223.32,223.29,0.67]
[1758546029055,1.34645863,223.31,223.26,0.67]
[1758546029350,1.34645863,223.27,223.26,4.47895112]
[1758546029556,1.34645863,223.28,223.26,4.47895112]
[1758546030332,1.34645863,223.28,223.25,4.47928331]
[1758546030538,1.34645863,223.3,223.26,0.67]
[1758546030738,1.34645863,223.3,223.27,0.67]
[1758546030950,1.34645863,223.3,223.28,0.67]
[1758546031251,1.34645863,223.3,223.26,14.26559401]
[1758546031467,1.34645863,223.3,223.26,0.67]
[1758546031667,1.34645863,223.3,223.27,0.67]
[1758546031832,1.34645863,223.3,223.28,0.67]
[1758546032252,1.34645863,223.3,223.27,4.47888207]
[1758546032441,1.34645863,223.29,223.27,4.47888207]
[1758546032758,1.34645863,223.29,223.27,5.14888207]
[1758546032957,1.34645863,223.3,223.28,0.67]
[1758546033551,1.34645863,223.3,223.27,15.67608724]
[1758546033857,1.34645863,223.28,223.27,4.47888207]
[1758546034159,1.34645863,223.28,223.25,4.47928331]
[1758546034330,15.6697752,223.36,223.25,4.47928331]
[1758546034331,1.34645863,223.27,223.25,4.47928331]
[1758546034530,2.10438481,223.26,223.25,4.47928331]
[1758546035365,2.10438481,223.27,223.25,5.14928331]
[1758546035539,2.10438481,223.27,223.26,0.67]
[1758546036043,2.10438481,223.29,223.26,0.67]
[1758546036237,15.6697752,223.36,223.26,0.67]
[1758546036238,2.10438481,223.28,223.26,0.67]
[1758546036444,2.10438481,223.28,223.27,4.47888207]
[1758546036865,4.47779557,223.33,223.27,4.47888207]
[1758546037039,2.10438481,223.28,223.27,4.47888207]
[1758546037754,2.10438481,223.28,223.25,4.47928331]
[1758546037968,2.10438481,223.27,223.25,4.47928331]
[1758546038138,2.10438481,223.26,223.22,11.1926934]
[1758546038341,2.10438481,223.32,223.2,0.67]
[1758546038553,2.10438481,223.22,223.2,0.67]
[1758546038762,2.10438481,223.21,223.16,4.4810898]
[1758546038949,2.10438481,223.18,223.17,0.67]
[1758546039143,2.10438481,223.21,223.17,0.67]
[1758546039344,2.10438481,223.22,223.17,0.67]
[1758546039568,2.10438481,223.22,223.18,0.67]
[1758546039863,2.10438481,223.22,223.19,5.15048747]
[1758546040954,2.10438481,223.21,223.19,5.15048747]
[1758546043173,2.10438481,223.21,223.19,0.67]
[1758546043369,2.10438481,223.2,223.16,0.67]
[1758546043543,2.10438481,223.18,223.16,0.67]
[1758546043738,2.10438481,223.18,223.17,0.67]
[1758546043962,2.10438481,223.19,223.17,0.67]
[1758546044138,2.10438481,223.2,223.17,0.67]
[1758546044337,2.10438481,223.2,223.18,0.67]
[1758546044643,2.10438481,223.21,223.18,0.67]
[1758546045660,2.10438481,223.21,223.19,4.48048747]
[1758546046363,2.10438481,223.21,223.19,5.15048747]
[1758546047256,2.10438481,223.21,223.19,4.48048747]
[1758546047566,2.10438481,223.2,223.18,4.48068823]
[1758546047769,2.10438481,223.2,223.18,5.15068823]
[1758546049268,2.10438481,223.2,223.16,4.4810898]
[1758546049470,2.10438481,223.2,223.16,5.1510898]
[1758546049768,2.10438481,223.21,223.17,0.67]
[1758546049951,2.10438481,223.21,223.18,0.67]
[1758546050669,2.10438481,223.21,223.18,5.15050731]
[1758546051456,2.10438481,223.21,223.19,0.67]
[1758546051968,2.10438481,223.21,223.18,4.48050731]
[1758546052163,2.10438481,223.21,223.18,5.15050731]
[1758546052768,2.10438481,223.21,223.12,0.67]
[1758546052769,2.10438481,223.19,223.12,0.67]
[1758546052971,4.48021371,223.21,223.08,80.6]
[1758546052972,2.10438481,223.15,223.14,4.47953288]
[1758546053156,2.10438481,223.15,223.11,4.48209403]
[1758546053463,2.10438481,223.14,223.12,0.67]
[1758546053848,2.10438481,223.13,223.12,0.67]
[1758546054063,2.10438481,223.14,223.12,0.67]
[1758546054268,2.10438481,223.14,223.12,5.15180101]
[1758546055172,2.10438481,223.13,223.12,0.67]
[1758546055358,2.10438481,223.13,223.1,4.48227835]
[1758546055579,2.10438481,223.13,223.1,5.15227835]
[1758546055869,2.10438481,223.12,223.11,0.67]
[1758546056359,2.10438481,223.12,223.11,5.15209403]
[1758546057372,2.10438481,223.12,223.11,0.67]
[1758546058285,2.10438481,223.12,223.11,5.15209403]
[1758546058652,4.48069896,223.18,223.11,5.15209403]
[1758546058853,2.10438481,223.13,223.11,5.15209403]
[1758546059061,2.10438481,223.13,223.12,0.67]
[1758546059568,2.10438481,223.13,223.11,5.15209403]
[1758546059775,2.10438481,223.12,223.11,5.15209403]
[1758546060679,4.48092562,223.17,223.11,5.15209403]
[1758546060884,2.10438481,223.14,223.11,4.48209403]
[1758546061068,2.10438481,223.14,223.12,0.67]
[1758546061667,4.48048747,223.19,223.12,0.67]
[1758546061973,2.10438481,223.14,223.12,0.67]
[1758546062178,2.10438481,223.13,223.12,0.67]
[1758546062677,4.48048747,223.19,223.12,0.67]
[1758546062678,2.10438481,223.14,223.12,5.1517261]
[1758546062874,2.10438481,223.14,223.13,0.67]
[1758546063101,22.38891074,223.33,223.13,0.67]
[1758546063102,11.19878915,223.24,223.13,0.67]
[1758546063382,2.10438481,223.18,223.13,0.67]
[1758546063953,24.79318551,223.27,223.13,2.77438481]
[1758546064156,2.10438481,223.21,223.15,2.10438481]
[1758546064380,2.10438481,223.21,223.16,0.67]
[1758546064589,2.10438481,223.22,223.16,0.67]
[1758546064890,2.10438481,223.22,223.17,4.480889]
[1758546065064,2.10438481,223.22,223.18,0.67]
[1758546065259,2.10438481,223.22,223.19,0.67]
[1758546065560,2.10438481,223.24,223.2,0.67]
[1758546065781,2.10438481,223.24,223.21,0.67]
[1758546065964,35.08,223.29,223.21,0.67]
[1758546065965,2.10438481,223.23,223.21,0.67]
[1758546066653,2.10438481,223.23,223.21,4.48000803]
[1758546066858,2.10438481,223.24,223.22,0.67]
[1758546067267,2.10438481,223.24,223.23,0.67]
[1758546067667,2.10438481,223.25,223.23,0.67]
[1758546067876,3.00598015,223.3,223.24,0.67]
[1758546068077,2.10438481,223.27,223.24,0.67]
[1758546068581,2.10438481,223.29,223.25,0.67]
[1758546068786,11.19299535,223.36,223.26,4.47908268]
[1758546068787,2.10438481,223.3,223.26,4.47908268]
[1758546069087,2.10438481,223.3,223.27,0.67]
[1758546069263,3.00611227,223.35,223.26,4.47908268]
[1758546069264,2.10438481,223.29,223.26,4.47908268]
[1758546069464,2.10438481,223.29,223.27,0.67]
[1758546069665,2.10438481,223.29,223.28,0.67]
[1758546070481,2.10438481,223.29,223.26,5.14908268]
[1758546070674,2.10438481,223.27,223.23,4.47968463]
[1758546070879,2.10438481,223.32,223.22,11.86923616]
[1758546070880,2.10438481,223.24,223.22,0.67]
[1758546071073,2.10438481,223.23,223.19,5.15034748]
[1758546071272,2.10438481,223.2,223.17,4.48073]
[1758546071463,2.10438481,223.18,223.16,0.67]
[1758546071793,2.10438481,223.17,223.14,4.48149144]
[1758546072489,2.10438481,223.17,223.15,0.67]
[1758546072682,3.00717144,223.27,223.18,4.48068823]
[1758546072874,2.10438481,223.22,223.19,0.67]
[1758546073192,2.10438481,223.21,223.19,0.67]
[1758546073492,2.10438481,223.2,223.18,4.48068823]
[1758546073693,2.10438481,223.2,223.19,0.67]
[1758546073874,2.10438481,223.22,223.19,0.67]
[1758546074287,3.00813668,223.3,223.22,13.59559401]
[1758546074493,2.10438481,223.29,223.24,13.59559401]